[Event "Early-Titled-Tuesday-Blitz-October-03-2023"]
[Site "Chess.com"]
[Date "2023.10.03"]
[Round "10"]
[White "GianmarcoVaR"]
[Black "tolimachess"]
[Result "1-0"]
[WhiteElo "2657"]
[BlackElo "2457"]
[TimeControl "180+1"]
[EndTime "9:56:49 PDT"]
[Termination "GianmarcoVaR won by checkmate"]

1. e4 {[%clk 0:02:38.6]} 1... c5 {[%clk 0:02:59.9]} 2. Nf3 {[%clk 0:02:38.2]}
2... Nc6 {[%clk 0:03:00.4]} 3. Bb5 {[%clk 0:02:38.2]} 3... g6 {[%clk 0:02:59]}
4. O-O {[%clk 0:02:38.5]} 4... Bg7 {[%clk 0:02:59.1]} 5. Re1 {[%clk 0:02:38.5]}
5... e5 {[%clk 0:02:58.9]} 6. c3 {[%clk 0:02:37.7]} 6... Nge7 {[%clk 0:02:59.4]}
7. d4 {[%clk 0:02:37.9]} 7... exd4 {[%clk 0:02:58.3]} 8. cxd4 {[%clk 0:02:37.4]}
8... cxd4 {[%clk 0:02:55.5]} 9. Bf4 {[%clk 0:02:36.7]} 9... O-O {[%clk
0:02:32.4]} 10. Bd6 {[%clk 0:02:35.8]} 10... a6 {[%clk 0:02:27.6]} 11. Bf1
{[%clk 0:02:33.6]} 11... h6 {[%clk 0:02:22.8]} 12. Nbd2 {[%clk 0:02:27]} 12...
b5 {[%clk 0:02:22.6]} 13. Nb3 {[%clk 0:02:25.4]} 13... Bb7 {[%clk 0:02:20.3]}
14. Rc1 {[%clk 0:02:13.2]} 14... Rc8 {[%clk 0:02:07.3]} 15. Nc5 {[%clk
0:02:11.1]} 15... Ba8 {[%clk 0:01:44.8]} 16. a3 {[%clk 0:02:10.8]} 16... Re8
{[%clk 0:01:33.9]} 17. Nxa6 {[%clk 0:02:04.8]} 17... Qb6 {[%clk 0:01:23.6]} 18.
Nc5 {[%clk 0:02:04]} 18... Rcd8 {[%clk 0:01:18.1]} 19. b4 {[%clk 0:01:59.1]}
19... Nc8 {[%clk 0:01:18.2]} 20. Bf4 {[%clk 0:01:58.3]} 20... d6 {[%clk
0:01:15.6]} 21. Nb3 {[%clk 0:01:56]} 21... N8a7 {[%clk 0:01:09.6]} 22. Qd2
{[%clk 0:01:52]} 22... g5 {[%clk 0:01:08.6]} 23. Bg3 {[%clk 0:01:51.9]} 23...
Bb7 {[%clk 0:00:50.4]} 24. Rcd1 {[%clk 0:01:47.1]} 24... d5 {[%clk 0:00:46]} 25.
e5 {[%clk 0:01:45.3]} 25... Bc8 {[%clk 0:00:34.8]} 26. Nfxd4 {[%clk 0:01:43.3]}
26... Nxe5 {[%clk 0:00:34.6]} 27. Qc2 {[%clk 0:01:26.9]} 27... Nc4 {[%clk
0:00:31.6]} 28. Rxe8+ {[%clk 0:00:43.2]} 28... Rxe8 {[%clk 0:00:31.6]} 29. Qc1
{[%clk 0:00:43.6]} 29... Bd7 {[%clk 0:00:24]} 30. Nc5 {[%clk 0:00:43.7]} 30...
Bc8 {[%clk 0:00:22.7]} 31. Ndb3 {[%clk 0:00:40.5]} 31... Bb2 {[%clk 0:00:21]}
32. Qb1 {[%clk 0:00:35.8]} 32... Bxa3 {[%clk 0:00:20.6]} 33. Nd4 {[%clk
0:00:33.3]} 33... Bb2 {[%clk 0:00:17]} 34. Bxc4 {[%clk 0:00:33.7]} 34... Bxd4
{[%clk 0:00:16.9]} 35. Bxd5 {[%clk 0:00:30.7]} 35... Bg7 {[%clk 0:00:11.2]} 36.
Qa2 {[%clk 0:00:12.8]} 36... Nc6 {[%clk 0:00:11.5]} 37. Bxf7+ {[%clk 0:00:13]}
37... Kf8 {[%clk 0:00:12.1]} 38. Bxe8 {[%clk 0:00:12.1]} 38... Nxb4 {[%clk
0:00:09.4]} 39. Qf7# {[%clk 0:00:12]} 1-0

[Event "Early-Titled-Tuesday-Blitz-October-03-2023"]
[Site "Chess.com"]
[Date "2023.10.03"]
[Round "10"]
[White "Rosh1610"]
[Black "KatakuriDono"]
[Result "1-0"]
[WhiteElo "2450"]
[BlackElo "2325"]
[TimeControl "180+1"]
[EndTime "9:56:50 PDT"]
[Termination "Rosh1610 won by resignation"]

1. f4 {[%clk 0:03:00.9]} 1... d5 {[%clk 0:02:59.5]} 2. Nf3 {[%clk 0:03:01]} 2...
Bg4 {[%clk 0:02:58.4]} 3. Ne5 {[%clk 0:02:59.4]} 3... Bf5 {[%clk 0:02:55]} 4. b3
{[%clk 0:02:59.2]} 4... Nd7 {[%clk 0:02:54.5]} 5. Bb2 {[%clk 0:02:58.5]} 5...
Nxe5 {[%clk 0:02:52.4]} 6. fxe5 {[%clk 0:02:56]} 6... e6 {[%clk 0:02:49.7]} 7.
d3 {[%clk 0:02:47.6]} 7... c5 {[%clk 0:02:38.8]} 8. e3 {[%clk 0:02:39.6]} 8...
Ne7 {[%clk 0:02:36.5]} 9. Be2 {[%clk 0:02:36.8]} 9... Nc6 {[%clk 0:02:34.8]} 10.
O-O {[%clk 0:02:32.9]} 10... Be7 {[%clk 0:02:30.9]} 11. Nd2 {[%clk 0:02:13.2]}
11... Bg5 {[%clk 0:02:28.4]} 12. Rf3 {[%clk 0:02:11.8]} 12... h5 {[%clk
0:02:10.5]} 13. Nf1 {[%clk 0:02:10.5]} 13... Bg4 {[%clk 0:02:07.6]} 14. Rf2
{[%clk 0:01:57.9]} 14... d4 {[%clk 0:01:55.7]} 15. exd4 {[%clk 0:01:48.5]} 15...
cxd4 {[%clk 0:01:45.3]} 16. Bxg4 {[%clk 0:01:47.6]} 16... hxg4 {[%clk 0:01:45]}
17. Qxg4 {[%clk 0:01:46.2]} 17... Rh4 {[%clk 0:01:34.7]} 18. Qg3 {[%clk
0:01:32.2]} 18... Rh6 {[%clk 0:01:13.8]} 19. Re1 {[%clk 0:01:30.7]} 19... Bh4
{[%clk 0:01:09.6]} 20. Qxg7 {[%clk 0:01:19.7]} 20... Bxf2+ {[%clk 0:01:08.9]}
21. Kxf2 {[%clk 0:01:18.7]} 21... Rg6 {[%clk 0:01:01.1]} 22. Qh7 {[%clk
0:01:16.9]} 22... Qg5 {[%clk 0:00:52.8]} 23. Ng3 {[%clk 0:01:13.8]} 23... O-O-O
{[%clk 0:00:42.6]} 24. Bc1 {[%clk 0:00:46.8]} 24... Qg4 {[%clk 0:00:33.6]} 25.
Qxf7 {[%clk 0:00:44]} 25... Rgg8 {[%clk 0:00:27.2]} 26. Bh6 {[%clk 0:00:30.1]}
26... Qh4 {[%clk 0:00:20.2]} 27. Qf6 {[%clk 0:00:28.9]} 27... Qxf6+ {[%clk
0:00:19.4]} 28. exf6 {[%clk 0:00:29.8]} 28... Rg6 {[%clk 0:00:19.9]} 29. Bg7
{[%clk 0:00:27.9]} 29... Rg8 {[%clk 0:00:16.7]} 30. Rxe6 {[%clk 0:00:25.2]}
30... Kd7 {[%clk 0:00:16]} 31. Re4 {[%clk 0:00:21.5]} 31... R6xg7 {[%clk
0:00:14.3]} 32. fxg7 {[%clk 0:00:21.4]} 32... Rxg7 {[%clk 0:00:15.2]} 33. Nf5
{[%clk 0:00:21.1]} 33... Rf7 {[%clk 0:00:15.5]} 34. g4 {[%clk 0:00:20.8]} 34...
Kc7 {[%clk 0:00:14.6]} 35. Kg3 {[%clk 0:00:20.8]} 35... Rf8 {[%clk 0:00:14.1]}
36. h4 {[%clk 0:00:20.8]} 36... a5 {[%clk 0:00:14.2]} 37. h5 {[%clk 0:00:21.1]}
37... Kb6 {[%clk 0:00:14.2]} 38. h6 {[%clk 0:00:20.9]} 38... Kc7 {[%clk
0:00:14.7]} 39. Kf4 {[%clk 0:00:18.5]} 39... Kd7 {[%clk 0:00:13.7]} 40. g5
{[%clk 0:00:18.5]} 1-0

[Event "Early-Titled-Tuesday-Blitz-October-03-2023"]
[Site "Chess.com"]
[Date "2023.10.03"]
[Round "10"]
[White "Caroexpert"]
[Black "BeautiFullMindChess"]
[Result "1-0"]
[WhiteElo "2500"]
[BlackElo "2375"]
[TimeControl "180+1"]
[EndTime "9:56:54 PDT"]
[Termination "Caroexpert won by checkmate"]

1. d4 {[%clk 0:03:00.9]} 1... Nf6 {[%clk 0:02:58.9]} 2. c4 {[%clk 0:03:01.1]}
2... g6 {[%clk 0:02:59.4]} 3. Nc3 {[%clk 0:03:01.4]} 3... Bg7 {[%clk 0:02:58.1]}
4. e4 {[%clk 0:03:01.9]} 4... d6 {[%clk 0:02:58.7]} 5. h3 {[%clk 0:03:02.4]}
5... O-O {[%clk 0:02:57.7]} 6. Be3 {[%clk 0:03:03.1]} 6... e5 {[%clk 0:02:58.6]}
7. d5 {[%clk 0:03:03]} 7... a5 {[%clk 0:02:56.2]} 8. g4 {[%clk 0:03:01.7]} 8...
Na6 {[%clk 0:02:54.4]} 9. Qd2 {[%clk 0:03:02.2]} 9... Nd7 {[%clk 0:02:54.4]} 10.
Nge2 {[%clk 0:02:52.5]} 10... Ndc5 {[%clk 0:02:50.3]} 11. Ng3 {[%clk 0:02:52.5]}
11... c6 {[%clk 0:02:49.4]} 12. Be2 {[%clk 0:02:47.1]} 12... cxd5 {[%clk
0:02:49.3]} 13. cxd5 {[%clk 0:02:47]} 13... Bd7 {[%clk 0:02:46.4]} 14. h4 {[%clk
0:02:41.7]} 14... Rb8 {[%clk 0:02:34.7]} 15. Nb5 {[%clk 0:01:32.6]} 15... Qb6
{[%clk 0:02:29.3]} 16. Na3 {[%clk 0:01:31.6]} 16... Qd8 {[%clk 0:02:08.4]} 17.
Nc4 {[%clk 0:01:29]} 17... b5 {[%clk 0:01:58]} 18. Nxd6 {[%clk 0:00:59.9]} 18...
Qb6 {[%clk 0:01:57.1]} 19. Ndf5 {[%clk 0:00:48]} 19... gxf5 {[%clk 0:01:53.7]}
20. gxf5 {[%clk 0:00:46.3]} 20... f6 {[%clk 0:01:19.1]} 21. Rg1 {[%clk
0:00:39.8]} 21... Rf7 {[%clk 0:01:06.4]} 22. Rc1 {[%clk 0:00:38.7]} 22... Kh8
{[%clk 0:00:59.1]} 23. f3 {[%clk 0:00:34.7]} 23... Bf8 {[%clk 0:00:55.2]} 24.
Nh5 {[%clk 0:00:33]} 24... Bd6 {[%clk 0:00:54.4]} 25. a3 {[%clk 0:00:28.2]}
25... a4 {[%clk 0:00:47.4]} 26. Bf1 {[%clk 0:00:09.7]} 26... Qd8 {[%clk
0:00:44.6]} 27. Qg2 {[%clk 0:00:08.1]} 27... Qf8 {[%clk 0:00:37.3]} 28. Be2
{[%clk 0:00:06]} 28... Rc8 {[%clk 0:00:35.4]} 29. Kf2 {[%clk 0:00:05.8]} 29...
Nb3 {[%clk 0:00:31.8]} 30. Rxc8 {[%clk 0:00:06.2]} 30... Bxc8 {[%clk 0:00:32]}
31. Bh6 {[%clk 0:00:03.8]} 31... Bc5+ {[%clk 0:00:28.3]} 32. Kf1 {[%clk
0:00:04.4]} 32... Bxg1 {[%clk 0:00:27.2]} 33. Bxf8 {[%clk 0:00:04.7]} 33... Be3
{[%clk 0:00:22.6]} 34. Bg7+ {[%clk 0:00:03.6]} 34... Kg8 {[%clk 0:00:19.4]} 35.
Nxf6+ {[%clk 0:00:04.1]} 35... Rxf6 {[%clk 0:00:16.5]} 36. Bxf6+ {[%clk
0:00:05]} 36... Kf8 {[%clk 0:00:16.5]} 37. Qg7+ {[%clk 0:00:05.3]} 37... Ke8
{[%clk 0:00:16.7]} 38. Qe7# {[%clk 0:00:06.2]} 1-0

[Event "Early-Titled-Tuesday-Blitz-October-03-2023"]
[Site "Chess.com"]
[Date "2023.10.03"]
[Round "10"]
[White "IngOscarArdila"]
[Black "JAN2404"]
[Result "1-0"]
[WhiteElo "2322"]
[BlackElo "2083"]
[TimeControl "180+1"]
[EndTime "9:56:55 PDT"]
[Termination "IngOscarArdila won by resignation"]

1. d4 {[%clk 0:03:00.9]} 1... Nf6 {[%clk 0:02:59.5]} 2. c4 {[%clk 0:03:01]} 2...
g6 {[%clk 0:02:59.8]} 3. Nc3 {[%clk 0:03:01.4]} 3... Bg7 {[%clk 0:03:00.2]} 4.
Nf3 {[%clk 0:03:01.9]} 4... O-O {[%clk 0:02:58.9]} 5. e3 {[%clk 0:03:02]} 5...
d5 {[%clk 0:02:55]} 6. Be2 {[%clk 0:03:01.8]} 6... c6 {[%clk 0:02:50.1]} 7. O-O
{[%clk 0:03:01.8]} 7... Nbd7 {[%clk 0:02:43.6]} 8. c5 {[%clk 0:03:02]} 8... a5
{[%clk 0:02:35.6]} 9. Bd2 {[%clk 0:03:01.1]} 9... b6 {[%clk 0:02:35.2]} 10. Na4
{[%clk 0:03:00.2]} 10... bxc5 {[%clk 0:02:32.7]} 11. Nxc5 {[%clk 0:02:56.8]}
11... Nxc5 {[%clk 0:02:25.8]} 12. dxc5 {[%clk 0:02:57.7]} 12... Ne4 {[%clk
0:02:26.1]} 13. Qc2 {[%clk 0:02:51.8]} 13... Rb8 {[%clk 0:02:15.7]} 14. b3
{[%clk 0:02:50.1]} 14... Bxa1 {[%clk 0:02:02.8]} 15. Rxa1 {[%clk 0:02:49.8]}
15... Nxd2 {[%clk 0:01:46]} 16. Qxd2 {[%clk 0:02:47.4]} 16... Bg4 {[%clk
0:01:42.9]} 17. Nd4 {[%clk 0:02:43.6]} 17... Bxe2 {[%clk 0:01:25.1]} 18. Qxe2
{[%clk 0:02:34.6]} 18... Qc7 {[%clk 0:01:23]} 19. Qa6 {[%clk 0:02:29.7]} 19...
Rfc8 {[%clk 0:01:07.4]} 20. f4 {[%clk 0:02:26.7]} 20... Ra8 {[%clk 0:01:05.2]}
21. Qe2 {[%clk 0:02:22.4]} 21... e5 {[%clk 0:00:59.4]} 22. fxe5 {[%clk
0:02:12.3]} 22... Qxe5 {[%clk 0:01:00.3]} 23. Qf3 {[%clk 0:02:09.1]} 23... Re8
{[%clk 0:00:57.6]} 24. Re1 {[%clk 0:02:07.7]} 24... Rac8 {[%clk 0:00:41.3]} 25.
h3 {[%clk 0:02:02.7]} 25... f5 {[%clk 0:00:37.2]} 26. g3 {[%clk 0:02:01.3]}
26... Qe7 {[%clk 0:00:32.5]} 27. Kf2 {[%clk 0:01:56]} 27... Qxc5 {[%clk
0:00:30.5]} 28. Rd1 {[%clk 0:01:33.2]} 28... Re4 {[%clk 0:00:26.6]} 29. Rd3
{[%clk 0:01:23.1]} 29... Qa3 {[%clk 0:00:20.6]} 30. Qe2 {[%clk 0:01:21.9]} 30...
c5 {[%clk 0:00:20]} 31. Nb5 {[%clk 0:01:17.8]} 31... Qb4 {[%clk 0:00:18.4]} 32.
Nd6 {[%clk 0:01:17.8]} 32... c4 {[%clk 0:00:15.1]} 33. Rxd5 {[%clk 0:01:13.6]}
33... Rce8 {[%clk 0:00:10.4]} 34. Nxe8 {[%clk 0:01:13.1]} 34... Rxe8 {[%clk
0:00:10.2]} 35. bxc4 {[%clk 0:01:13.2]} 35... a4 {[%clk 0:00:09.7]} 36. Rb5
{[%clk 0:01:04.6]} 36... Qc3 {[%clk 0:00:07.4]} 37. c5 {[%clk 0:01:02.8]} 37...
Rc8 {[%clk 0:00:07.9]} 38. Qb2 {[%clk 0:00:40.2]} 38... Qd3 {[%clk 0:00:04.4]}
39. Rb8 {[%clk 0:00:35.4]} 39... Qd8 {[%clk 0:00:03]} 40. Rxc8 {[%clk
0:00:32.4]} 40... Qxc8 {[%clk 0:00:03.9]} 41. Qb6 {[%clk 0:00:32.1]} 41... Qe8
{[%clk 0:00:01.9]} 42. c6 {[%clk 0:00:29.5]} 42... Qe4 {[%clk 0:00:01.1]} 43.
Qc5 {[%clk 0:00:24.5]} 43... Qc2+ {[%clk 0:00:02]} 44. Qxc2 {[%clk 0:00:24.1]}
1-0

[Event "Early-Titled-Tuesday-Blitz-October-03-2023"]
[Site "Chess.com"]
[Date "2023.10.03"]
[Round "10"]
[White "temus_galaktionov"]
[Black "sergoy"]
[Result "1/2-1/2"]
[WhiteElo "2882"]
[BlackElo "3017"]
[TimeControl "180+1"]
[EndTime "9:56:56 PDT"]
[Termination "Game drawn by repetition"]

1. d4 {[%clk 0:03:00]} 1... Nf6 {[%clk 0:03:00.2]} 2. Nf3 {[%clk 0:03:00]} 2...
e6 {[%clk 0:03:00.5]} 3. c4 {[%clk 0:03:00]} 3... b6 {[%clk 0:03:00.8]} 4. g3
{[%clk 0:03:00.1]} 4... Ba6 {[%clk 0:03:01.5]} 5. b3 {[%clk 0:03:00.3]} 5...
Bb4+ {[%clk 0:03:01.6]} 6. Bd2 {[%clk 0:03:00.5]} 6... Be7 {[%clk 0:03:02.2]} 7.
Bg2 {[%clk 0:03:00.8]} 7... d5 {[%clk 0:03:02.7]} 8. cxd5 {[%clk 0:03:00.7]}
8... exd5 {[%clk 0:03:02.5]} 9. O-O {[%clk 0:03:00.7]} 9... O-O {[%clk
0:03:02.4]} 10. Nc3 {[%clk 0:03:01.3]} 10... Re8 {[%clk 0:03:01.4]} 11. a3
{[%clk 0:03:01.3]} 11... c6 {[%clk 0:02:59.1]} 12. b4 {[%clk 0:03:01.3]} 12...
Nbd7 {[%clk 0:02:58.2]} 13. Bf4 {[%clk 0:02:56.5]} 13... Bb7 {[%clk 0:02:55.8]}
14. Qb3 {[%clk 0:02:51.6]} 14... a5 {[%clk 0:02:50.4]} 15. b5 {[%clk 0:02:47]}
15... c5 {[%clk 0:02:48.9]} 16. Rfd1 {[%clk 0:02:46]} 16... c4 {[%clk
0:02:33.8]} 17. Qc2 {[%clk 0:02:45.5]} 17... Nf8 {[%clk 0:02:20.8]} 18. Ne5
{[%clk 0:02:40.8]} 18... Rc8 {[%clk 0:02:21.2]} 19. Bh3 {[%clk 0:02:17.7]} 19...
Ne6 {[%clk 0:02:21]} 20. Be3 {[%clk 0:02:17.7]} 20... Bd6 {[%clk 0:02:18.2]} 21.
f4 {[%clk 0:02:17.8]} 21... Rc7 {[%clk 0:02:13.6]} 22. Qf5 {[%clk 0:01:56.6]}
22... Qe7 {[%clk 0:02:10.8]} 23. a4 {[%clk 0:01:51]} 23... Bb4 {[%clk
0:02:09.6]} 24. Rac1 {[%clk 0:01:49.9]} 24... Bxc3 {[%clk 0:01:55.1]} 25. Rxc3
{[%clk 0:01:50.8]} 25... Ne4 {[%clk 0:01:55.5]} 26. Rcc1 {[%clk 0:01:47.2]}
26... f6 {[%clk 0:01:55.3]} 27. Nf3 {[%clk 0:01:10.4]} 27... Nf8 {[%clk
0:01:55.5]} 28. Bd2 {[%clk 0:01:00.1]} 28... g6 {[%clk 0:01:13.4]} 29. Qg4
{[%clk 0:00:59.9]} 29... Bc8 {[%clk 0:01:14.1]} 30. Qh4 {[%clk 0:00:59.9]} 30...
Bxh3 {[%clk 0:01:14.6]} 31. Qxh3 {[%clk 0:01:00.8]} 31... Nxd2 {[%clk
0:01:12.8]} 32. Rxd2 {[%clk 0:01:01.7]} 32... Qe3+ {[%clk 0:01:11.5]} 33. Kf1
{[%clk 0:01:00.8]} 33... Qa3 {[%clk 0:01:07.1]} 34. Rdd1 {[%clk 0:00:56.1]}
34... Rce7 {[%clk 0:01:05.5]} 35. Rc2 {[%clk 0:00:55]} 35... Qxa4 {[%clk
0:01:03.1]} 36. Rdc1 {[%clk 0:00:45.4]} 36... Qxb5 {[%clk 0:01:03.1]} 37. f5
{[%clk 0:00:44.2]} 37... g5 {[%clk 0:00:58.6]} 38. Qh6 {[%clk 0:00:41.5]} 38...
Nd7 {[%clk 0:00:42.1]} 39. h4 {[%clk 0:00:40.3]} 39... g4 {[%clk 0:00:39.8]} 40.
Nh2 {[%clk 0:00:38.5]} 40... Re4 {[%clk 0:00:39.9]} 41. Qh5 {[%clk 0:00:38.7]}
41... Qb3 {[%clk 0:00:34.9]} 42. Rc3 {[%clk 0:00:32.6]} 42... Qb2 {[%clk
0:00:29.9]} 43. R1c2 {[%clk 0:00:29.6]} 43... Qb1+ {[%clk 0:00:22.4]} 44. Rc1
{[%clk 0:00:29.9]} 44... Qa2 {[%clk 0:00:19.2]} 45. R1c2 {[%clk 0:00:29.5]}
45... Qb1+ {[%clk 0:00:07.3]} 46. Rc1 {[%clk 0:00:29.5]} 46... Qb2 {[%clk
0:00:07.9]} 47. R1c2 {[%clk 0:00:29.6]} 47... Qb1+ {[%clk 0:00:07.4]} 1/2-1/2

[Event "Early-Titled-Tuesday-Blitz-October-03-2023"]
[Site "Chess.com"]
[Date "2023.10.03"]
[Round "10"]
[White "Alenzer"]
[Black "NowInChess"]
[Result "1-0"]
[WhiteElo "2108"]
[BlackElo "2209"]
[TimeControl "180+1"]
[EndTime "9:56:58 PDT"]
[Termination "Alenzer won by resignation"]

1. e4 {[%clk 0:02:59.2]} 1... e6 {[%clk 0:02:58.3]} 2. d4 {[%clk 0:02:58.9]}
2... d5 {[%clk 0:02:58.9]} 3. exd5 {[%clk 0:02:59.2]} 3... exd5 {[%clk 0:02:59]}
4. c4 {[%clk 0:03:00.1]} 4... Nf6 {[%clk 0:02:58.5]} 5. Nc3 {[%clk 0:02:59.9]}
5... Bb4 {[%clk 0:02:58.7]} 6. Nf3 {[%clk 0:02:59.7]} 6... O-O {[%clk
0:02:58.4]} 7. Bd3 {[%clk 0:03:00.2]} 7... Re8+ {[%clk 0:02:57.1]} 8. Be3 {[%clk
0:03:00.3]} 8... Bg4 {[%clk 0:02:54.9]} 9. O-O {[%clk 0:02:59.9]} 9... Nc6
{[%clk 0:02:52.3]} 10. h3 {[%clk 0:02:59.7]} 10... Bxf3 {[%clk 0:02:40.6]} 11.
Qxf3 {[%clk 0:02:59.3]} 11... dxc4 {[%clk 0:02:41]} 12. Bxc4 {[%clk 0:02:59.3]}
12... Nxd4 {[%clk 0:02:40.7]} 13. Qxb7 {[%clk 0:02:54.8]} 13... Bxc3 {[%clk
0:02:34]} 14. bxc3 {[%clk 0:02:52.9]} 14... Nf5 {[%clk 0:01:47.5]} 15. Bg5
{[%clk 0:02:44.8]} 15... h6 {[%clk 0:01:40.7]} 16. Rad1 {[%clk 0:02:34.2]} 16...
Qe7 {[%clk 0:01:24.2]} 17. Bxf6 {[%clk 0:02:20.4]} 17... Qxf6 {[%clk 0:01:22.2]}
18. Rd7 {[%clk 0:02:19.9]} 18... Nd6 {[%clk 0:00:49]} 19. Qxc7 {[%clk
0:02:10.4]} 19... Rec8 {[%clk 0:00:37.7]} 20. Qxd6 {[%clk 0:02:08.8]} 20... Qxd6
{[%clk 0:00:37.7]} 21. Rxd6 {[%clk 0:02:09]} 21... Rxc4 {[%clk 0:00:38.4]} 22.
Rd3 {[%clk 0:02:05.5]} 22... Rb8 {[%clk 0:00:36]} 23. Ra1 {[%clk 0:01:32.3]}
23... Rb2 {[%clk 0:00:34.7]} 24. a4 {[%clk 0:01:27.3]} 24... Re4 {[%clk
0:00:26.5]} 25. a5 {[%clk 0:01:17.5]} 25... Ree2 {[%clk 0:00:24.9]} 26. Rf3
{[%clk 0:01:17.5]} 26... Ra2 {[%clk 0:00:23.9]} 27. Rxa2 {[%clk 0:01:12.6]}
27... Rxa2 {[%clk 0:00:23.4]} 28. Rf5 {[%clk 0:01:11.9]} 28... g6 {[%clk
0:00:21.9]} 29. Rc5 {[%clk 0:01:10.9]} 29... Kf8 {[%clk 0:00:19.6]} 30. g3
{[%clk 0:01:11.1]} 30... Ke7 {[%clk 0:00:20]} 31. Rc7+ {[%clk 0:01:09.2]} 31...
Kd6 {[%clk 0:00:13.5]} 32. Rxa7 {[%clk 0:01:10.1]} 32... f5 {[%clk 0:00:13.1]}
33. Kg2 {[%clk 0:01:07.2]} 33... Rc2 {[%clk 0:00:13.5]} 34. Rg7 {[%clk
0:01:06.2]} 34... g5 {[%clk 0:00:11.4]} 35. Rg6+ {[%clk 0:01:06.3]} 35... Kc5
{[%clk 0:00:10.6]} 36. Rxh6 {[%clk 0:01:06.7]} 36... Rxc3 {[%clk 0:00:10.8]} 37.
Ra6 {[%clk 0:01:05.4]} 37... Kb5 {[%clk 0:00:10.2]} 38. Ra8 {[%clk 0:01:05.2]}
38... Rc2 {[%clk 0:00:06.4]} 39. h4 {[%clk 0:01:05.1]} 39... g4 {[%clk
0:00:06.3]} 40. h5 {[%clk 0:01:05.1]} 40... Rc6 {[%clk 0:00:05.2]} 41. a6 {[%clk
0:01:03.1]} 41... Kb6 {[%clk 0:00:05.2]} 42. f3 {[%clk 0:00:58.2]} 42... gxf3+
{[%clk 0:00:03.9]} 43. Kxf3 {[%clk 0:00:58.4]} 43... Rh6 {[%clk 0:00:04.6]} 44.
g4 {[%clk 0:00:58.7]} 44... fxg4+ {[%clk 0:00:02.5]} 45. Kxg4 {[%clk 0:00:59]}
45... Rh7 {[%clk 0:00:02.4]} 46. Kg5 {[%clk 0:00:58.4]} 46... Rg7+ {[%clk
0:00:01.8]} 47. Kf6 {[%clk 0:00:58.6]} 47... Rh7 {[%clk 0:00:02]} 48. Kg6 {[%clk
0:00:59]} 48... Rd7 {[%clk 0:00:02.5]} 49. h6 {[%clk 0:00:59.3]} 49... Rd6+
{[%clk 0:00:02.7]} 50. Kg7 {[%clk 0:00:59.7]} 50... Rd7+ {[%clk 0:00:03.4]} 51.
Kg8 {[%clk 0:01:00]} 51... Rd6 {[%clk 0:00:03.2]} 52. h7 {[%clk 0:01:00]} 52...
Rg6+ {[%clk 0:00:03.9]} 53. Kf7 {[%clk 0:00:59.8]} 53... Rh6 {[%clk 0:00:04.5]}
54. h8=Q {[%clk 0:00:59.6]} 1-0

[Event "Early-Titled-Tuesday-Blitz-October-03-2023"]
[Site "Chess.com"]
[Date "2023.10.03"]
[Round "10"]
[White "QuintilianoR"]
[Black "Arystanner"]
[Result "0-1"]
[WhiteElo "2658"]
[BlackElo "2829"]
[TimeControl "180+1"]
[EndTime "9:56:59 PDT"]
[Termination "Arystanner won by resignation"]

1. Nf3 {[%clk 0:03:00.3]} 1... d5 {[%clk 0:03:00.2]} 2. e3 {[%clk 0:02:58.9]}
2... Nf6 {[%clk 0:03:00.2]} 3. c4 {[%clk 0:02:58.2]} 3... e6 {[%clk 0:03:01]} 4.
b3 {[%clk 0:02:58.2]} 4... Bd6 {[%clk 0:03:01.7]} 5. Bb2 {[%clk 0:02:58.6]} 5...
O-O {[%clk 0:03:02.5]} 6. Nc3 {[%clk 0:02:57.9]} 6... c5 {[%clk 0:03:02.8]} 7.
cxd5 {[%clk 0:02:58.1]} 7... exd5 {[%clk 0:03:03.7]} 8. d4 {[%clk 0:02:57.9]}
8... cxd4 {[%clk 0:03:03.6]} 9. Nxd4 {[%clk 0:02:57.6]} 9... Nc6 {[%clk
0:03:04]} 10. Be2 {[%clk 0:02:55.7]} 10... Nxd4 {[%clk 0:03:04.2]} 11. Qxd4
{[%clk 0:02:55]} 11... Re8 {[%clk 0:03:04.9]} 12. O-O {[%clk 0:02:53.2]} 12...
Be5 {[%clk 0:03:04.7]} 13. Qd2 {[%clk 0:02:53]} 13... Be6 {[%clk 0:03:02]} 14.
Rad1 {[%clk 0:02:52.1]} 14... Qa5 {[%clk 0:03:00.2]} 15. a3 {[%clk 0:02:21.9]}
15... Rad8 {[%clk 0:02:54.9]} 16. b4 {[%clk 0:02:21.5]} 16... Qc7 {[%clk
0:02:52.6]} 17. Nb5 {[%clk 0:02:07.8]} 17... Qb8 {[%clk 0:02:23.5]} 18. Bxe5
{[%clk 0:02:01.8]} 18... Qxe5 {[%clk 0:02:24.1]} 19. Nxa7 {[%clk 0:02:02.4]}
19... Ra8 {[%clk 0:02:24]} 20. Nb5 {[%clk 0:02:02.3]} 20... Bd7 {[%clk 0:02:22]}
21. Qd4 {[%clk 0:01:33.1]} 21... Bxb5 {[%clk 0:02:10.3]} 22. Bxb5 {[%clk
0:01:31.2]} 22... Qxd4 {[%clk 0:02:10.7]} 23. Rxd4 {[%clk 0:01:30.8]} 23... Rec8
{[%clk 0:02:09.3]} 24. a4 {[%clk 0:01:29.1]} 24... g6 {[%clk 0:02:07.3]} 25. h3
{[%clk 0:01:27.3]} 25... h5 {[%clk 0:02:07.2]} 26. a5 {[%clk 0:01:27.3]} 26...
Rc2 {[%clk 0:02:04.8]} 27. Rfd1 {[%clk 0:01:26.3]} 27... Kg7 {[%clk 0:02:03.7]}
28. Kf1 {[%clk 0:01:23.2]} 28... Rac8 {[%clk 0:01:47.6]} 29. a6 {[%clk 0:01:23]}
29... bxa6 {[%clk 0:01:46.2]} 30. Bxa6 {[%clk 0:01:23]} 30... R8c3 {[%clk
0:01:47]} 31. Bd3 {[%clk 0:00:36.3]} 31... Rb2 {[%clk 0:01:45.8]} 32. b5 {[%clk
0:00:36.4]} 32... g5 {[%clk 0:01:37.6]} 33. g3 {[%clk 0:00:30.7]} 33... g4
{[%clk 0:01:36.8]} 34. h4 {[%clk 0:00:30.7]} 34... Rc5 {[%clk 0:01:35.6]} 35.
Kg2 {[%clk 0:00:28.2]} 35... Nd7 {[%clk 0:01:35.4]} 36. Rb1 {[%clk 0:00:25.5]}
36... Rxb1 {[%clk 0:01:34.3]} 37. Bxb1 {[%clk 0:00:26.4]} 37... Rxb5 {[%clk
0:01:34]} 38. Bd3 {[%clk 0:00:26.3]} 38... Rc5 {[%clk 0:01:33.4]} 39. e4 {[%clk
0:00:24.8]} 39... Ne5 {[%clk 0:01:21.4]} 40. exd5 {[%clk 0:00:24.2]} 40... Nf3
{[%clk 0:01:21]} 41. Re4 {[%clk 0:00:22.2]} 41... Rc1 {[%clk 0:01:01.5]} 42. Bf1
{[%clk 0:00:18.4]} 42... Rxf1 {[%clk 0:01:00]} 43. Rxg4+ {[%clk 0:00:15.8]}
43... hxg4 {[%clk 0:01:00.9]} 44. Kxf1 {[%clk 0:00:16.5]} 44... Kf6 {[%clk
0:01:01.3]} 45. Ke2 {[%clk 0:00:16.8]} 45... Ke5 {[%clk 0:01:01.7]} 46. Ke3
{[%clk 0:00:17.4]} 46... Nd4 {[%clk 0:00:56.2]} 47. d6 {[%clk 0:00:16.5]} 47...
Nf5+ {[%clk 0:00:56.6]} 48. Ke2 {[%clk 0:00:16.9]} 48... Kxd6 {[%clk 0:00:56.7]}
49. Kd3 {[%clk 0:00:17.1]} 49... Ke5 {[%clk 0:00:56.9]} 50. Kc4 {[%clk
0:00:16.9]} 50... Nd6+ {[%clk 0:00:56.5]} 51. Kd3 {[%clk 0:00:17.5]} 51... Ne4
{[%clk 0:00:56.4]} 52. Ke3 {[%clk 0:00:17.9]} 52... Kf5 {[%clk 0:00:54.3]} 53.
f3 {[%clk 0:00:18.2]} 53... Nf6 {[%clk 0:00:55]} 54. Kf2 {[%clk 0:00:17.4]}
54... Nh5 {[%clk 0:00:53.3]} 55. Kg2 {[%clk 0:00:18]} 55... Ng7 {[%clk
0:00:52.8]} 56. Kf2 {[%clk 0:00:18.5]} 56... Ne6 {[%clk 0:00:52.7]} 57. Kg2
{[%clk 0:00:19]} 57... Nd4 {[%clk 0:00:53]} 58. fxg4+ {[%clk 0:00:18.5]} 58...
Kxg4 {[%clk 0:00:53.9]} 59. Kf2 {[%clk 0:00:19.2]} 59... Nf5 {[%clk 0:00:54.5]}
60. h5 {[%clk 0:00:17.1]} 60... Kxh5 {[%clk 0:00:54.4]} 61. Kf3 {[%clk
0:00:17.8]} 61... Kg5 {[%clk 0:00:55.1]} 62. Ke4 {[%clk 0:00:17.5]} 62... Nxg3+
{[%clk 0:00:54.8]} 63. Ke5 {[%clk 0:00:18.4]} 63... f5 {[%clk 0:00:55]} 0-1